Cogmind - Beta 14 @@@ ROGUE MODE // 2025.03.27 @ 19:01:48 Player: Zoe Result: Destroyed by D-63 Destroyer with Heavy Rocket Launcher Performance ------------- Evolutions (5) 2500 Regions Visited (11) 2200 Robots Destroyed (149) 745 Value Destroyed (5005) 5005 Prototype IDs (10) 200 Alien Tech Used (0) 0 Bonus (1251) 1251 TOTAL SCORE: 11901 Bonus ------- High Alert Combat Kills 281 Follower Combat Kills 52 Met Warlord at Base 500 MAIN.C Attacked Warlord 500 Friendly Fire -82 Cogmind --------- Core Integrity 0/1000 Matter 295/300 Energy 395/395 System Corruption 16% Temperature Cool (0) Movement Treading (249) Ox1 Location -5/Warlord Parts ------- > --- POWER (2) -------- Antimatter Reactor Light Antimatter Reactor > --- PROPULSION (4) --- Improved Medium Treads Spiked Medium Treads Armored Medium Treads Advanced VSS Leg > --- UTILITY (9) ------ Improved Heat Sink High-capacity Storage Unit Improved Signal Interpreter Core Shielding Improved Medium Armor Plating Reflective Plating > --- WEAPON (2) ------- Backup Laser III Vortex Shotgun > --- INVENTORY (20) --- Backup Power III Backup Power III Light Nuclear Core Light Antimatter Reactor Flexi-carbon Leg Backup Laser III Vortex Shotgun (50) Peak State ------------ > --- POWER ------------ Antimatter Reactor Light Antimatter Reactor > --- PROPULSION ------- Improved Medium Treads Spiked Medium Treads Armored Medium Treads Advanced VSS Leg > --- UTILITY ---------- Improved Heat Sink Advanced Heat Sink High-capacity Storage Unit Improved Signal Interpreter Improved Melee Analysis Suite Improved Medium Armor Plating > --- WEAPON ----------- Vortex Shotgun RU-N14's Throwing Claymores v3 > --- INVENTORY -------- Backup Power III Backup Power III Light Nuclear Core Flexi-carbon Leg Backup Laser III Vortex Shotgun [Rating: 77] Favorites ----------- Power Ion Engine Engine Ion Engine Power Core Cooled Fission Core Reactor Light Antimatter Reactor Propulsion Light Treads Treads Light Treads Leg Aluminum Leg Hover Unit Backup Propulsion III Flight Unit Field Propulsion Drive Utility System Shield Device Improved Sensor Array Storage High-capacity Storage Unit Processor Improved Signal Interpreter Hackware System Shield Protection Light Armor Plating Weapon Heavy Laser Energy Gun Heavy Laser Energy Cannon Particle Cannon Ballistic Gun High-powered Shotgun Ballistic Cannon Mini Assault Cannon Launcher Improved Grenade Launcher Special Weapon RU-N14's Throwing Claymores v3 Build | -11 -10 -10 -9 -9 -8 -7 -6 -5 -5 -5 -5 ------- Run | Yrd Mat Min Mat Min Mat Fac Fac Fac Upp Upp War Slots Evolved 10 | . . . 2 . 2 2 2 2 . . . Power 1 | . . . . . . . 1 . . . . Propulsion 2 | . . . 2 . . . . . . . . Utility 7 | . . . . . 2 2 1 2 . . . Weapon . | . . . . . . . . . . . . Parts Attached 162 | 4 8 1 15 . 16 45 23 28 6 . 16 Power 19 | . 1 . 1 . . 3 5 6 1 . 2 Engine 8 | . 1 . 1 . . 1 3 2 . . . Core 9 | . . . . . . 2 2 4 1 . . Reactor 2 | . . . . . . . . . . . 2 Propulsion 53 | 2 2 . 7 . 6 14 6 9 2 . 5 Treads 43 | 2 2 . 4 . 6 14 6 5 1 . 3 Leg 5 | . . . 3 . . . . . . . 2 Wheel . | . . . . . . . . . . . . Hover . | . . . . . . . . . . . . Flight 5 | . . . . . . . . 4 1 . . Utility 42 | . 4 1 2 . 5 12 3 8 1 . 6 Device 14 | . . . 1 . . 5 1 5 1 . 1 Storage 3 | . . 1 1 . . . . . . . 1 Processor 5 | . . . . . . 3 1 . . . 1 Hackware 2 | . . . . . 1 1 . . . . . Protection 18 | . 4 . . . 4 3 1 3 . . 3 Artifact . | . . . . . . . . . . . . Weapon 48 | 2 1 . 5 . 5 16 9 5 2 . 3 Energy Gun 24 | 2 1 . 3 . 1 5 8 2 1 . 1 Energy Cannon 9 | . . . 1 . 1 6 . 1 . . . Ballistic Gun 7 | . . . 1 . 2 4 . . . . . Ballistic Cannon 1 | . . . . . . . . 1 . . . Launcher 5 | . . . . . 1 1 1 1 1 . . Special Weapon 2 | . . . . . . . . . . . 2 Impact Weapon . | . . . . . . . . . . . . Slashing Weapon . | . . . . . . . . . . . . Piercing Weapon . | . . . . . . . . . . . . Special Melee Weapon . | . . . . . . . . . . . . Unidentified Prototypes 10 | . . . 1 . . 2 2 3 . . 2 Corrupted Parts 5 | . . . 1 . . 2 . . . . 2 System Corruption 21 | . . . 3 . . 5 . . . . 13 Parts Lost 58 | . 1 . 3 . 1 16 3 26 6 . 2 Power 6 | . . . 1 . . 1 . 4 . . . Propulsion 24 | . . . 1 . . 6 2 10 4 . 1 Utility 16 | . . . 1 . . 5 . 9 . . 1 Weapon 12 | . 1 . . . 1 4 1 3 2 . . Highest Loss Streak 15 | . 1 . 1 . 1 4 1 15 5 . 1 To Critical Strikes 1 | . . . . . . . . 1 . . . Average Slot Usage (%) 83 | . 84 100 97 100 100 95 99 80 30 17 46 Engine 6 | . 12 14 10 11 9 4 10 4 . . 5 Core 1 | . . . . . . 2 2 3 . . . Treads 21 | . 26 28 24 22 31 28 25 16 4 . 3 Leg 3 | . . . 18 22 4 . . . . . 1 Device 9 | . . . 4 11 9 10 13 17 4 5 6 Storage 5 | . . . 11 11 9 7 6 4 . . 1 Processor 5 | . . . . . . 5 14 10 5 5 5 Hackware 5 | . . . . . 9 14 6 3 . . . Protection 5 | . 15 27 5 . 9 3 4 4 . . . Energy Gun 8 | . 27 28 15 11 4 4 12 1 2 . 6 Energy Cannon 3 | . . . 6 11 9 4 . 3 . . . Ballistic Gun 1 | . . . . . 3 3 . . . . . Peak Build Rating 77 | 4 7 7 14 14 22 47 55 70 38 8 77 Average Rating 32 | 3 5 7 11 14 18 36 49 53 23 8 35 On Entrance 16 | . 4 7 7 14 14 22 46 50 22 8 8 Naked Turns . | . . . . . . . . . . . . Heaviest Build 100 | 3 14 16 55 53 61 70 80 100 12 1 100 Greatest Support 112 | 40 40 40 60 40 80 112 112 96 14 4 85 Greatest Overweight (x) 21 | . 3 . 5 1 1 1 1 21 . . 3 Average Overweight (x) . | . . . 1 1 . . . . . . . Largest Inventory Capacity 20 | 5 5 8 20 20 20 20 20 20 5 5 20 Average Capacity 16 | 5 5 5 19 20 20 20 20 17 5 5 9 Most Carried 20 | 2 5 6 19 19 20 20 20 20 5 2 7 Average Carried 12 | . 2 5 10 19 18 16 17 15 1 2 3 Final Capacity 20 | 5 5 8 20 20 20 20 20 5 5 5 20 Final Carried 20 | 2 5 6 19 19 20 15 19 5 2 2 7 Class Distribution -------------------- 51% | Scavenger-Mutant 34% | Mutant 13% | Hacker-Mutant Dominant Class ---------------- Mutant | -10/Materials Mutant | -10/Mines Mutant | -9/Materials Scavenger-Mutant | -9/Mines Scavenger-Mutant | -8/Materials Hacker-Mutant | -7/Factory Scavenger-Mutant | -6/Factory Scavenger-Mutant | -5/Factory Mutant | -5/Upper Caves Mutant | -5/Upper Caves Mutant | -5/Warlord Resources | -11 -10 -10 -9 -9 -8 -7 -6 -5 -5 -5 -5 ----------- Run | Yrd Mat Min Mat Min Mat Fac Fac Fac Upp Upp War Matter Collected 2617 | 125 193 . 135 . 312 703 326 534 60 11 218 Remotely . | . . . . . . . . . . . . Salvage Created 5401 | . 449 . 676 . 533 1684 521 1507 31 . . Parts 295 | . 34 . 36 . 35 91 26 71 2 . . Haulers Intercepted 8 | . 1 . . . 1 4 1 1 . . . Recyclers Shooed 7 | . 1 . 1 . 1 3 . 1 . . . Parts Field Recycled . | . . . . . . . . . . . . Retrieved Matter . | . . . . . . . . . . . . Parts Self-Destructed 8 | . . . . . . . . . 6 2 . Prevented 1 | . . . . . . . . . . 1 . Kills | -11 -10 -10 -9 -9 -8 -7 -6 -5 -5 -5 -5 ------- Run | Yrd Mat Min Mat Min Mat Fac Fac Fac Upp Upp War Combat Hostiles Destroyed 105 | . 13 . 15 . 14 26 8 27 2 . . Guns 45 | . 13 . 13 . 4 8 6 1 . . . Cannons 43 | . . . 2 . 8 8 . 25 . . . AOE 14 | . . . . . 1 9 2 . 2 . . Classes Destroyed 13 | . 6 . 2 . 2 2 1 . . . . Worker 10 | . 1 . . . . 4 . 5 . . . Builder 15 | . 1 . . . . 9 1 4 . . . Hauler 8 | . 1 . . . 1 4 1 1 . . . Recycler 4 | . 1 . . . . 3 . . . . . Operator 1 | . . . . . 1 . . . . . . Watcher 6 | . . . 2 . . 2 1 1 . . . Swarmer 21 | . 9 . 3 . 5 . . 3 1 . . Grunt 43 | . 4 . 9 . 4 16 3 7 . . . Brawler 2 | . . . . . . 1 . 1 . . . Duelist 4 | . . . . . . . 1 3 . . . Sentry 14 | . . . 3 . 4 4 2 1 . . . Hunter 12 | . . . . . 1 2 . 8 1 . . Programmer 9 | . . . . . . 3 2 4 . . . Best Kill Streak 17 | . 4 . 4 . 4 17 4 14 1 . . Combat Bots Only 11 | . 4 . 4 . 4 6 4 11 1 . . Max Kills in Single Turn 5 | . 1 . 1 . 1 5 2 2 1 . . Gunslinging . | . . . . . . . . . . . . Exploded 2 | . . . . . 1 2 2 . 1 . . Melee . | . . . . . . . . . . . . Uniques/NPCs Destroyed . | . . . . . . . . . . . . Combat | -11 -10 -10 -9 -9 -8 -7 -6 -5 -5 -5 -5 -------- Run | Yrd Mat Min Mat Min Mat Fac Fac Fac Upp Upp War Hostile Shots Fired 966 | . 59 . 68 . 70 290 81 287 75 27 9 Missed 269 | . 15 . 15 . 16 80 28 64 30 20 1 Damage Taken 9585 | . 407 . 587 . 746 2625 744 3253 765 139 319 Core 1638 | . 66 . 92 . 38 294 143 492 286 125 102 Absorbed by Shields 497 | . . . . . . . . 296 . . 201 Redirected to Shielding 1 | . . . . . . . . . . . 1 Regen/Repaired (Parts) 240 | . 90 . . . . . . . . . 150 Core Remaining (%) 80 | 100 . 73 . 77 93 58 83 . . . . Volleys Fired 399 | . 54 1 46 . 44 113 33 100 5 . 3 Largest 2 | . 2 2 2 . 2 2 2 2 2 . 2 Hottest 153 | . 90 90 113 . 136 138 138 153 96 . 60 Shots Fired 639 | . 92 2 92 . 87 160 48 147 6 . 5 Gun 345 | . 92 2 75 . 32 90 46 5 1 . 2 Cannon 268 | . . . 17 . 50 61 . 140 . . . Launcher 23 | . . . . . 5 9 2 2 5 . . Special 3 | . . . . . . . . . . . 3 Kinetic 120 | . . . . . 16 48 . 56 . . . Thermal 363 | . 92 2 47 . 56 43 34 89 . . . Explosive 26 | . . . . . 5 9 2 2 5 . 3 Electromagnetic 128 | . . . 45 . 10 60 12 . 1 . . Entropic 2 | . . . . . . . . . . . 2 Robot Hit Streak 18 | . 11 5 6 . 14 18 7 14 3 . 4 Robot Miss Streak 8 | . 6 1 5 . 7 8 2 4 1 . 2 Penetration Max . | . . . . . . . . . . . . Secondary Targets 5 | . 3 . 1 . . 1 . . . . . Max Gunslinging Chain 1 | . 1 . 1 . . 1 . . . . . Shots Hit Robots 411 | . 51 1 54 . 54 129 28 89 4 . 1 Core Hits 254 | . 23 . 22 . 31 106 25 39 8 . . Critical Kills 1 | . . . . . . . . 1 . . . Critical Parts Destroyed 1 | . . . . . . 1 . . . . . Critical Strikes 14 | . 1 . 2 . . 5 . 6 . . . Burn 5 | . 1 . 2 . . 1 . 1 . . . Meltdown 1 | . . . . . . . . 1 . . . Destroy 1 | . . . . . . 1 . . . . . Blast 4 | . . . . . . . . 4 . . . Corrupt 3 | . . . . . . 3 . . . . . Melee Attacks . | . . . . . . . . . . . . Impact . | . . . . . . . . . . . . Slashing . | . . . . . . . . . . . . Piercing . | . . . . . . . . . . . . Sneak Attacks . | . . . . . . . . . . . . Combat Hostiles . | . . . . . . . . . . . . Follow-up Attacks . | . . . . . . . . . . . . Damage Inflicted 13460 | . 609 14 884 . 1258 4774 887 4580 372 . 82 Guns 3744 | . 609 12 655 . 277 1464 571 74 . . 82 Cannons 6392 | . . . 227 . 655 1134 . 4376 . . . Explosions 3091 | . . . . . 313 2150 256 . 372 . . Melee . | . . . . . . . . . . . . Ramming 233 | . . 2 2 . 13 26 60 130 . . . Kinetic 1763 | . . . . . 172 757 . 834 . . . Thermal 6986 | . 609 12 477 . 705 1143 424 3616 . . . Explosive 2676 | . . . . . 313 1735 256 . 372 . . Electromagnetic 1720 | . . . 405 . 55 1113 147 . . . . Impact . | . . . . . . . . . . . . Slashing . | . . . . . . . . . . . . Piercing . | . . . . . . . . . . . . Entropic 82 | . . . . . . . . . . . 82 Highest Corruption 16 | . . . 3 3 1 12 5 7 7 8 16 Average Corruption 6 | . . . 3 3 1 9 5 3 7 7 12 Corruption Purged . | . . . . . . . . . . . . Corruption Blocked 3 | . . . . . . 2 1 . . . . Effects 110 | . . . 6 2 1 44 14 17 9 6 11 Message Errors 24 | . . . 2 . . 8 3 3 5 1 2 Matter Fused 22 | . . . 3 2 . 8 1 6 1 . 1 Heat Flow Errors 20 | . . . . . . 10 4 2 1 1 2 Energy Discharges 13 | . . . 1 . 1 5 2 2 . . 2 Parts Fused 1 | . . . . . . . . . 1 . . Data Loss (minor) 19 | . . . . . . 5 4 2 1 4 3 Data Loss (major) 6 | . . . . . . 5 . 1 . . . Misfires 3 | . . . . . . 1 . 1 . . 1 Misdirections 1 | . . . . . . 1 . . . . . Weapon Failures 1 | . . . . . . 1 . . . . . Overload Shots 75 | . . . . . . . . 75 . . . Effects 4 | . . . . . . . . 4 . . . Energy Bleed 1 | . . . . . . . . 1 . . . Heat Surge 2 | . . . . . . . . 2 . . . Short Circuit 1 | . . . . . . . . 1 . . . Overflow Damage 399 | . . . 1 . . 98 . 300 . . . Projectiles 302 | . . . 1 . . 8 . 293 . . . Explosions 97 | . . . . . . 90 . 7 . . . Melee . | . . . . . . . . . . . . Knockbacks 13 | . . . . . . . . 13 . . . Impact 2 | . . . . . . . . 2 . . . Kinetic 9 | . . . . . . . . 9 . . . Secondary 2 | . . . . . . . . 2 . . . Self-Inflicted Damage 187 | . . . . . . 138 . 49 . . . Shots 5 | . . . . . . 4 . 1 . . . Rammed 25 | . . 1 1 . 1 5 4 13 . . . Targets Rammed 33 | . . 1 1 . 1 6 4 20 . . . Kicked . | . . . . . . . . . . . . Crushed 8 | . . . . . . 1 . 7 . . . Highest Temperature 488 | . 486 48 339 . 216 488 236 194 169 76 247 Average Temperature 109 | . 151 27 94 . 48 129 79 41 96 50 115 Received Heat Transfer 1969 | . 96 . 204 . 234 801 183 286 138 18 9 Effects 11 | . 5 . 1 . . 5 . . . . . Shutdowns 3 | . 2 . . . . 1 . . . . . Energy Bleed 3 | . 1 . 1 . . 1 . . . . . Interference 3 | . 1 . . . . 2 . . . . . Matter Decay 1 | . . . . . . 1 . . . . . Short Circuit 1 | . 1 . . . . . . . . . . Siege Activations . | . . . . . . . . . . . . Robots Corrupted 2 | . . . . . . 1 1 . . . . Combat Hostiles 1 | . . . . . . 1 . . . . . Parts Fried 8 | . . . . . . 4 4 . . . . Impact Corruptions 1 | . . . . . . . 1 . . . . Robots Melted 2 | . . . . . 1 . . 1 . . . Combat Hostiles 2 | . . . . . 1 . . 1 . . . Parts Melted 32 | . 3 . . . 5 6 1 17 . . . Heat Transferred 11542 | . 1698 37 1283 . 1332 1813 777 4602 . . . Parts Sabotaged . | . . . . . . . . . . . . Parts Stolen . | . . . . . . . . . . . . Parts Stripped . | . . . . . . . . . . . . Power Chain Reactions 6 | . . . . . . 6 . . . . . Alert | -11 -10 -10 -9 -9 -8 -7 -6 -5 -5 -5 -5 ------- Run | Yrd Mat Min Mat Min Mat Fac Fac Fac Upp Upp War Peak Influence 674 | . 400 80 303 36 381 493 357 674 . . . Initial 215 | . . 80 31 36 13 172 215 72 . . . Average 241 | . 201 80 148 36 185 314 230 292 . . . Maximum Alert Level 2 | . 2 . 1 . 1 2 1 2 . . . Low Security (%) 45 | 100 30 100 64 100 46 32 44 42 . . . Level 1 36 | . 68 . 35 . 53 33 55 21 . . . Level 2 17 | . 1 . . . . 34 . 36 . . . Level 3 . | . . . . . . . . . . . . Level 4 . | . . . . . . . . . . . . Level 5 . | . . . . . . . . . . . . High Security . | . . . . . . . . . . . . Max Security . | . . . . . . . . . . . . Squads Dispatched 30 | . 3 . 4 . 1 9 1 11 . 1 . Investigation 4 | . . . 1 . 1 . . 2 . . . Extermination 6 | . . . . . . 2 1 3 . . . Reinforcement 13 | . 3 . 3 . . 3 . 4 . . . Assault 3 | . . . . . . . . 2 . 1 . Garrison 4 | . . . . . . 4 . . . . . Intercept . | . . . . . . . . . . . . Searches Triggered . | . . . . . . . . . . . . Construction Impeded 4 | . . . 1 . . 2 . 1 . . . Haulers Reinforced 2 | . . . . . . 1 . 1 . . . Active Scanning Responses . | . . . . . . . . . . . . Cargo Convoy Interrupts 1 | . . . . . . . . 1 . . . Stealth | -11 -10 -10 -9 -9 -8 -7 -6 -5 -5 -5 -5 --------- Run | Yrd Mat Min Mat Min Mat Fac Fac Fac Upp Upp War Distress Signals 18 | . . . 5 . 2 4 . 6 . . 1 Communications Jammed . | . . . . . . . . . . . . Distress Signals . | . . . . . . . . . . . . Times Spotted 234 | . 29 . 25 . 22 41 9 47 11 11 39 Peak Tracking Total 17 | . 5 . 5 . 4 8 4 7 6 11 17 Tactical Retreats 19 | . 1 . . . 2 2 . 8 3 3 . Traps | -11 -10 -10 -9 -9 -8 -7 -6 -5 -5 -5 -5 ------- Run | Yrd Mat Min Mat Min Mat Fac Fac Fac Upp Upp War Traps Triggered 8 | . 1 . 1 . 1 4 . . . . 1 Indirectly . | . . . . . . . . . . . . Trap Hack Attempts . | . . . . . . . . . . . . Triggered . | . . . . . . . . . . . . Disarmed . | . . . . . . . . . . . . Reprogrammed . | . . . . . . . . . . . . Reused . | . . . . . . . . . . . . Traps Extracted . | . . . . . . . . . . . . Installed . | . . . . . . . . . . . . Triggered 8 | . . . . . . . . 1 . 1 6 Machines | -11 -10 -10 -9 -9 -8 -7 -6 -5 -5 -5 -5 ---------- Run | Yrd Mat Min Mat Min Mat Fac Fac Fac Upp Upp War Machines Disabled 7 | . . . . . . 2 1 4 . . . Max in Single Turn 1 | . . . . . . 1 1 1 . . . Garrison Access 1 | . . . . . . . . 1 . . . Machines Repaired . | . . . . . . . . . . . . Machines Dismantled . | . . . . . . . . . . . . Machines Sabotaged . | . . . . . . . . . . . . Overloaded Fab Kills . | . . . . . . . . . . . . Hacking | -11 -10 -10 -9 -9 -8 -7 -6 -5 -5 -5 -5 --------- Run | Yrd Mat Min Mat Min Mat Fac Fac Fac Upp Upp War Machines Accessed 15 | . 1 . 1 . 2 3 3 4 . . 1 Terminals 11 | . . . 1 . 2 3 2 3 . . . Fabricators 1 | . . . . . . . 1 . . . . Repair Stations 1 | . 1 . . . . . . . . . . Recycling Units . | . . . . . . . . . . . . Scanalyzers . | . . . . . . . . . . . . Garrison Access 1 | . . . . . . . . 1 . . . Total Hacks 36 | . 2 . 3 . 8 7 4 11 . . 1 Successful 10 | . 2 . 1 . . 2 1 3 . . 1 Failed 26 | . . . 2 . 8 5 3 8 . . . Catastrophic 9 | . . . 1 . 4 1 2 1 . . . Database Lockouts . | . . . . . . . . . . . . Manual 25 | . . . 2 . 8 7 1 7 . . . Terminals 27 | . . . 3 . 8 7 2 7 . . . Fabricators 2 | . . . . . . . 2 . . . . Repair Stations 2 | . 2 . . . . . . . . . . Recycling Units . | . . . . . . . . . . . . Scanalyzers . | . . . . . . . . . . . . Garrison Access 4 | . . . . . . . . 4 . . . Terminal Hacks 6 | . . . 1 . . 1 1 2 . . 1 Open Door 1 | . . . . . . . . . . . 1 Open DSF 1 | . . . . . . . 1 . . . . Branch Access Points 1 | . . . . . . . . 1 . . . Alert Level 2 | . . . 1 . . . . 1 . . . Registered Components 1 | . . . . . . 1 . . . . . Fabricator Hacks . | . . . . . . . . . . . . Repair Station Hacks 2 | . 2 . . . . . . . . . . Scan Component 1 | . 1 . . . . . . . . . . Repair 1 | . 1 . . . . . . . . . . Recycling Unit Hacks . | . . . . . . . . . . . . Scanalyzer . | . . . . . . . . . . . . Garrison Access Hacks . | . . . . . . . . . . . . Unauthorized Hacks 2 | . . . . . . 1 . 1 . . . Terminals 2 | . . . . . . 1 . 1 . . . Botnet 2 | . . . . . . 1 . 1 . . . Fabricators . | . . . . . . . . . . . . Repair Stations . | . . . . . . . . . . . . Recycling Units . | . . . . . . . . . . . . Scanalyzers . | . . . . . . . . . . . . Garrison Access . | . . . . . . . . . . . . Data Cores Recovered 1 | . . . . . 1 . . . . . . Used 1 | . . . . . 1 . . . . . . Hacking Detections 10 | . . . . . 2 3 2 3 . . . Full Trace Events 3 | . . . . . 1 . . 2 . . . Feedback Events 1 | . . . . . . . . 1 . . . Corruption 1 | . . . . . . . . 1 . . . Feedback Blocked . | . . . . . . . . . . . . Robot Schematics Acquired . | . . . . . . . . . . . . Robots Built . | . . . . . . . . . . . . Authchips . | . . . . . . . . . . . . Time . | . . . . . . . . . . . . Total Robot Build Rating . | . . . . . . . . . . . . Part Schematics Acquired . | . . . . . . . . . . . . Parts Built . | . . . . . . . . . . . . Authchips . | . . . . . . . . . . . . Time . | . . . . . . . . . . . . Total Part Build Rating . | . . . . . . . . . . . . Parts Repaired 1 | . 1 . . . . . . . . . . Time 36 | . 36 . . . . . . . . . . Parts Recycled . | . . . . . . . . . . . . Recycled Matter . | . . . . . . . . . . . . Retrieved Matter . | . . . . . . . . . . . . Retrieved Components . | . . . . . . . . . . . . Parts Scanalyzed . | . . . . . . . . . . . . Part Schematics Acquired . | . . . . . . . . . . . . Parts Damaged . | . . . . . . . . . . . . Bothacking | -11 -10 -10 -9 -9 -8 -7 -6 -5 -5 -5 -5 ------------ Run | Yrd Mat Min Mat Min Mat Fac Fac Fac Upp Upp War Used RIF Installer . | . . . . . . . . . . . . Robots Hacked . | . . . . . . . . . . . . Non-combat . | . . . . . . . . . . . . Combat . | . . . . . . . . . . . . Robot Hacks Applied . | . . . . . . . . . . . . Relay Couplers Released 1 | . . . . . . . . 1 . . . Machine Destruction 1 | . . . . . . . . 1 . . . Fabnet Peak Effective % . | . . . . . . . . . . . . Robots Rewired 6 | . . . . . . 1 . . . . 5 Allies Hacked . | . . . . . . . . . . . . Hacks Repelled . | . . . . . . . . . . . . Allies | -11 -10 -10 -9 -9 -8 -7 -6 -5 -5 -5 -5 -------- Run | Yrd Mat Min Mat Min Mat Fac Fac Fac Upp Upp War Total Allies 6 | . . . . . . 1 . . . . 5 Largest Group 5 | . . . . . . 1 . . . . 5 Highest-Rated Group 306 | . . . . . . 16 . . . . 306 Highest-Rated Ally 68 | . . . . . . 16 . . . . 68 Total Orders . | . . . . . . . . . . . . Ally Attacks 9 | . . . . . . 2 . . . . 7 Total Damage 296 | . . . . . . 32 . . . . 264 Kills 2 | . . . . . . . . . . . 2 Allies Corrupted . | . . . . . . . . . . . . Allies Melted . | . . . . . . . . . . . . Intel | -11 -10 -10 -9 -9 -8 -7 -6 -5 -5 -5 -5 ------- Run | Yrd Mat Min Mat Min Mat Fac Fac Fac Upp Upp War Robot Analysis Total . | . . . . . . . . . . . . Derelict Logs Recovered 2 | . . 1 . . . . . . 1 . . Drone Launches . | . . . . . . . . . . . . Drone Recoveries . | . . . . . . . . . . . . Exploration | -11 -10 -10 -9 -9 -8 -7 -6 -5 -5 -5 -5 ------------- Run | Yrd Mat Min Mat Min Mat Fac Fac Fac Upp Upp War Turns Passed 8203 | 67 520 156 986 106 617 1897 957 1590 248 238 821 Spaces Moved 4648 | 39 197 94 344 45 246 871 505 985 350 279 693 Core 671 | 2 1 . . . . . . 328 101 . 239 Treads 2922 | 37 196 94 311 45 246 871 505 532 . . 85 Legs 33 | . . . 33 . . . . . . . . Wheels . | . . . . . . . . . . . . Hover 339 | . . . . . . . . . . . 339 Flight 683 | . . . . . . . . 125 249 279 30 Fastest Speed 35 | 50 160 160 160 240 160 160 160 39 35 35 35 Average Speed 135 | 154 160 160 231 240 177 166 161 117 53 35 102 Slowest Speed 1100 | 160 200 160 470 240 240 240 240 1100 65 35 255 Overloaded Moves . | . . . . . . . . . . . . Propulsion Burnouts . | . . . . . . . . . . . . Robots Hopped 4 | . . . . . . . . . 2 2 . Cave-ins Triggered 1 | . . . . . . . . . . . 1 Exploration Rate (%) 35 | 4 51 26 37 18 27 28 20 21 57 45 86 Regions Visited 11 Branch Regions 5 Pre-discovered Areas . | . . . . . . . . . . . . Known Exits Taken 5 | . . . . . . 1 1 1 1 1 . Unknown Exits Taken 6 | 1 1 1 1 1 1 . . . . . . Scrap Searched . | . . . . . . . . . . . . Spaces Dug 28 | . . . . . . . . 12 . . 16 Terrain Destroyed 280 | . . . . . 35 105 17 54 14 . 55 Melee . | . . . . . . . . . . . . Projectile 30 | . . . . . . . . 29 . . 1 AOE 250 | . . . . . 35 105 17 25 14 . 54 Terrain Rammed . | . . . . . . . . . . . . Walls Destroyed . | . . . . . . . . . . . . Machines Disabled . | . . . . . . . . . . . . Actions | -11 -10 -10 -9 -9 -8 -7 -6 -5 -5 -5 -5 --------- Run | Yrd Mat Min Mat Min Mat Fac Fac Fac Upp Upp War Total 5864 | 44 306 97 434 44 337 1146 592 1253 400 416 795 Wait 471 | . 44 . 18 . 20 79 11 102 41 140 16 Move 4629 | 38 196 93 343 44 245 870 504 984 346 274 692 Hop 3 | . . . . . . . . . 1 2 . Pick Up 53 | 2 4 1 11 . 4 13 9 5 . . 4 Fast Attach 34 | 4 7 . 2 . . 5 2 4 2 . 8 Attach 47 | . 1 . 3 . 3 14 5 16 4 . 1 Detach 9 | . . . . . . 1 2 3 1 . 2 Swap 81 | . . 1 10 . 13 26 16 8 . . 7 Drop 36 | . . . . . 7 12 6 11 . . . Fire 399 | . 54 1 46 . 44 113 33 100 5 . 3 Melee . | . . . . . . . . . . . . Ram 8 | . . . . . . . . 8 . . . Kick . | . . . . . . . . . . . . Crush 25 | . . 1 1 . 1 6 4 12 . . . Escape Stasis 1 | . . . . . . . . . . . 1 Rewire 68 | . . . . . . 7 . . . . 61 Trap . | . . . . . . . . . . . . Miscellaneous . | . . . . . . . . . . . . Route ------- -11/Scrapyard -10/Materials (discovered 3 exits: *Mat / [*Min x2]) -10/Mines -9/Materials -9/Mines -8/Materials -7/Factory -6/Factory -5/Factory (discovered 4 exits: *Upp x2 / Ext x2) -5/Upper Caves -5/Upper Caves (discovered 2 exits: *Fac / *War) -5/Warlord History --------- Turn | Location | Event 23 | -11/Scrapyard | Discovered new exit (range 15) 68 | -11/Scrapyard | Entered Materials 318 | -10/Materials | Build established: Mutant 333 | -10/Materials | Discovered new exit (range 9) 472 | -10/Materials | Discovered new exit (range 15) 553 | -10/Materials | Repaired Broken Lgt. Treads 588 | -10/Materials | Discovered new exit (range 16) 588 | -10/Materials | Entered Mines 710 | -10/Mines | Learned Materials emergency access door positions 723 | -10/Mines | Discovered new exit (range 7) 744 | -10/Mines | Entered Materials 744 | -9/Materials | Evolved 2 slots: Propulsion x2 1607 | -9/Materials | Build established: Scavenger-Mutant 1701 | -9/Materials | Discovered new exit (range 13) 1730 | -9/Materials | Entered Mines 1781 | -9/Mines | Found a damaged Exp. Sensor Array with a note attached 1819 | -9/Mines | Discovered new exit (range 10) 1836 | -9/Mines | Entered Materials 1836 | -8/Materials | Evolved 2 slots: Utility x2 2406 | -8/Materials | Discovered new exit (range 14) 2453 | -8/Materials | Entered Factory 2453 | -7/Factory | Evolved 2 slots: Utility x2 2941 | -7/Factory | Garrison activated, responded to threat 3136 | -7/Factory | Lost 4 parts (1p3n) 3469 | -7/Factory | System corruption reached 10% 3499 | -7/Factory | Lost 3 parts (1n2u) 3725 | -7/Factory | Garrison activated, responded to threat 3841 | -7/Factory | Build established: Hacker-Mutant 3932 | -7/Factory | Lost 4 parts (2u2w) 4334 | -7/Factory | Discovered new exit (range 13) 4349 | -7/Factory | Identified exit to Factory 4350 | -7/Factory | Entered another Factory area 4350 | -6/Factory | Evolved 2 slots: Power x1, Utility x1 4680 | -6/Factory | Build established: Scavenger-Mutant 5255 | -6/Factory | Discovered new exit (range 5) 5260 | -6/Factory | Identified exit to Factory 5307 | -6/Factory | Entered another Factory area 5307 | -5/Factory | Evolved 2 slots: Utility x2 6181 | -5/Factory | Identified exit to Upper Caves 6181 | -5/Factory | Identified exit to Extension 6384 | -5/Factory | Lost 8 parts (1p4n3u) 6401 | -5/Factory | Destroyed 11 combat bots 6587 | -5/Factory | Lost 15 parts (3p4n5u3w) 6764 | -5/Factory | Cargo convoy interrupted 6807 | -5/Factory | First assault squad dispatched 6810 | -5/Factory | Build established: Mutant 6897 | -5/Factory | Entered Upper Caves 7004 | -5/Upper Caves | Attracted the attention of an 0b10 checkpoint 7006 | -5/Upper Caves | Core integrity fell below 50% 7044 | -5/Upper Caves | Spotted B-75 Beast 7064 | -5/Upper Caves | Lost 5 parts (3n2w) 7069 | -5/Upper Caves | Learned Factory stockpile data 7144 | -5/Upper Caves | Discovered new exit (range 3) 7144 | -5/Upper Caves | Identified exit to Upper Caves 7145 | -5/Upper Caves | Entered another Upper Caves area 7295 | -5/Upper Caves | Attracted the attention of an 0b10 checkpoint 7297 | -5/Upper Caves | Discovered new exit (range 11) 7301 | -5/Upper Caves | Identified exit to Factory 7351 | -5/Upper Caves | Attracted the attention of an 0b10 outpost 7352 | -5/Upper Caves | Core integrity fell below 20% 7367 | -5/Upper Caves | Spotted B-75 Beast 7379 | -5/Upper Caves | Discovered new exit (range 12) 7382 | -5/Upper Caves | Identified exit to Warlord 7383 | -5/Upper Caves | Entered Warlord 7396 | -5/Warlord | System corruption cleaned by Quarantine Array 7433 | -5/Warlord | Found Prototype Special Weapon 7433 | -5/Warlord | Identified RU-N14's Throwing Claymores v3 7685 | -5/Warlord | Met Warlord 7701 | -5/Warlord | Warlord's base attacked by MAIN.C 7784 | -5/Warlord | Found Prototype Energy Gun 7784 | -5/Warlord | Identified Vortex Shotgun 7787 | -5/Warlord | Found Vortex Shotgun 7967 | -5/Warlord | System corruption reached 10% 8051 | -5/Warlord | Warlord forces counterattacked 8114 | -5/Warlord | Lost 3 allies 8177 | -5/Warlord | Crushed by falling debris 8192 | -5/Warlord | Lost 8 allies 8201 | -5/Warlord | Spotted Executioner 8201 | -5/Warlord | Spotted Executioner 8204 | -5/Warlord | Destroyed by D-63 Destroyer with Heavy Rocket Launcher Last Messages --------------- 08188_ The unstable cave ceiling collapses. 08188_ Imp. Medium Armor Plating crushed. 08188_ RV-M3K(m) repairs Cooling System. 08188_ I5-ZI8(m) repairs Reflective Plating. 08190_ RV-M3K(m) repairs Slug Cannon. 08190_ I5-ZI8(m) repairs 54-6YZ(g). 08191_ ANNOUNCEMENT: MAIN.C reinforcements approaching through caves, arriving soon. 08194_ The unstable cave ceiling collapses. 08194_ Acquired Core Shielding. 08196_ Acquired 10 matter. 08201_ ANNOUNCEMENT: Detected 2 Grunt squads, 1 Melee squad, 1 Demolisher squad, with prototype support. 08201_ Slug penetrates D-63 Destroyer. 08201_ Slug penetrates Earth. 08203_ ZQ-BOL(g) shuts down. 08203_ Slug penetrates Wall. 08203_ Slug penetrates I-47 Archangel. 08204_ 54-6YZ(g) destroyed. Map ----- +----------------------------------------------------+ | ?????????????????????????????????????? | | ?????????????????????????????????????? | | ?????????????????????????????????????? | | ?????????????????????????????????????? | | ?????????????????????????????????????? | | ?????????????????????????????????????? | | ?????????????????????????????????????? | | ?????????????????????????????????????? | | ?????????????????????????????????????? | | ?????????????????????????????????????? | | ?????????????????????????????????????? | | ?????????????????????????????????????? | | ??????????????????????????#??????????? | | ?????????????????????????# ??????????? | | ????????????????????????? ??????????? | | ????????????????????????? ??????????? | | ?????????????????????????? ??????????? | | ??""?????????????????????? ##????????? | | ??""#????????????????????? #????????? | | ?#""#????????????????????? ##???????? | | ?#""#????#####???????????? #?????"#? | | ##""###### ######??????? ##??? #? | | !*""%=["#### " "######### ###g #"# | | !*""==%==| ] =% # #*#=##; ;iE ;#? | | [=""!=*[%%%%%% %%!;#[!=* [ g g x | | =**%=%=*=b%%==[ [=!Mi%g!@[%d %blEg g< | | %%%=%%!%%!B!=%%%%M%%%Mg=gg !l;; b#??? | | %=!*%% %%!B=%[[[ Mgbg=%M=mg ;; #??? | | !%*%%=%=[!%= %= g%!ii!g # # #??? | | %["" ** % !=!##= * ## %%;;#? | | "" %##* *% " " # | | "" ## # !## = % ; # | | ##"" #### # ####!#; "## | | ?#""#####??## ## # ### "#? | | ?#""#???????# ??###### ""#? | | ??""????????##??????## ## ##? | | ??""????????????????# ### ;#?? | | ????????????????????# #?? ##?? | | ????????????????????# ##?? ; #??? | | ????????????????????# #???### ##??? | | ???????????????????## ##????#" #??? | | ??????????????????## ##??## % #??? | | ??????????????????# ##?# #??? | | ??????????????????# ## ### #??? | | ?????????????????# #?## ## #??? | | ???????????????? ???## ## #??? | | ###???????????? ????# ## ##??? | | #??????????# ## ????## #???? | | #??????????####?#??????### ##???? | | #????????????????????????######????? | +----------------------------------------------------+ Best States ------------- Heat Dissipation 78 Energy Generation 37 Energy Capacity 540 Matter Stores 300 Matter Capacity 300 Sight Range 16 Robot Scan Range 15 Terrain Scan Density 10 Corruption Block 8 Armor Coverage 675 Resistance: TH 10 Core Shielding 20 Evasion (%) 63 Melee Accuracy 6 Target Analysis 5 Recoil Reduction 4 Particle Charging 15 Defensive Hacking 20 Item Schematics ----------------- None Robot Schematics ------------------ None Fabricated ------------ Nothing Alien Tech Used ----------------- None Achievements -------------- None Challenges ------------ None Game ------ Seed WeaponLongswordMinigun Manual? 0 Play Time 01:10:05 Cumulative 85.8 hours Start 2025.03.27 @ 17:49:51 End 2025.03.27 @ 19:01:48 Sessions 1 Manual Loads 0 Difficulty Rogue Special Mode None Game No. 58 Rogue 58 Adventurer 0 Explorer 0 Win Type - Total 0 Types 0/0/0/0/0/0/0/0/0 Lore% 31 Gallery% 56 Achievement% 48 Wizard Run 0 Options --------- Layout 1 ASCII 0 Keyboard 1 Movement Numpad Keybinds 0 Fullscreen 1 Font 24/Smallcaps Map View 50x35 Zoom Use 0% Tactical HUD 1 Map Filters NONE Filters NONE Steam 1 RUN: bad1f0cc-23a5-43f0-90dd-64499cf63724